[Event "*** Titled Tuesday Blitz"]
[Site "Chess.com"]
[Date "2019.11.05"]
[Round "9"]
[White "2165149677570"]
[Black "vlad_Sid"]
[Result "1-0"]
[WhiteElo "2308"]
[BlackElo "2475"]
[TimeControl "180+2"]
[EndTime "15:09:10 PST"]
[Termination "2165149677570 won by checkmate"]

1. d4 {[%clk 0:03:01.9]} 1... Nf6 {[%clk 0:03:00.4]} 2. c4 {[%clk 0:03:02.5]}
2... c5 {[%clk 0:03:02]} 3. d5 {[%clk 0:03:03.7]} 3... b5 {[%clk 0:03:03.4]} 4.
cxb5 {[%clk 0:03:04.6]} 4... a6 {[%clk 0:03:04.9]} 5. bxa6 {[%clk 0:03:06.3]}
5... g6 {[%clk 0:03:06.4]} 6. Nc3 {[%clk 0:03:07.5]} 6... Bg7 {[%clk 0:03:07.8]}
7. e4 {[%clk 0:03:09.2]} 7... O-O {[%clk 0:03:08.8]} 8. Nf3 {[%clk 0:03:02.6]}
8... d6 {[%clk 0:03:07]} 9. a7 {[%clk 0:03:04.1]} 9... Rxa7 {[%clk 0:03:08]} 10.
Bd3 {[%clk 0:03:03.7]} 10... Bg4 {[%clk 0:03:01.8]} 11. O-O {[%clk 0:03:03.7]}
11... Nbd7 {[%clk 0:03:02.3]} 12. Bf4 {[%clk 0:02:57]} 12... Qb6 {[%clk
0:02:58]} 13. Nb5 {[%clk 0:02:57.4]} 13... Raa8 {[%clk 0:02:44.4]} 14. a4 {[%clk
0:02:56]} 14... Nh5 {[%clk 0:02:44.8]} 15. Bg5 {[%clk 0:02:43.2]} 15... Rfe8
{[%clk 0:02:32.4]} 16. Ra2 {[%clk 0:02:34.1]} 16... h6 {[%clk 0:02:25.7]} 17.
Be3 {[%clk 0:02:27.7]} 17... Bxf3 {[%clk 0:02:10.5]} 18. Qxf3 {[%clk 0:02:27.9]}
18... Ne5 {[%clk 0:02:05.6]} 19. Qd1 {[%clk 0:02:24.9]} 19... Nxd3 {[%clk
0:02:07.5]} 20. Qxd3 {[%clk 0:02:26.4]} 20... Reb8 {[%clk 0:02:09.4]} 21. Bd2
{[%clk 0:02:15.1]} 21... Qa6 {[%clk 0:02:09]} 22. Rfa1 {[%clk 0:02:11.1]} 22...
g5 {[%clk 0:01:50.8]} 23. g3 {[%clk 0:02:06.8]} 23... Nf6 {[%clk 0:01:49.6]} 24.
Bc3 {[%clk 0:02:00.3]} 24... Qc8 {[%clk 0:01:45.7]} 25. f3 {[%clk 0:01:57]}
25... Qh3 {[%clk 0:01:43.8]} 26. Qf1 {[%clk 0:01:55.6]} 26... Qd7 {[%clk
0:01:43]} 27. Kg2 {[%clk 0:01:46]} 27... g4 {[%clk 0:01:39.2]} 28. Qd3 {[%clk
0:00:48.1]} 28... e6 {[%clk 0:00:57.5]} 29. dxe6 {[%clk 0:00:27.1]} 29... Qxe6
{[%clk 0:00:58.4]} 30. Nc7 {[%clk 0:00:21.3]} 30... gxf3+ {[%clk 0:00:34]} 31.
Qxf3 {[%clk 0:00:23.2]} 31... Qe7 {[%clk 0:00:26.1]} 32. Bxf6 {[%clk 0:00:14.3]}
32... Qxc7 {[%clk 0:00:25]} 33. Qg4 {[%clk 0:00:14.5]} 33... Kf8 {[%clk
0:00:19.4]} 34. Qxg7+ {[%clk 0:00:14.2]} 34... Ke8 {[%clk 0:00:21.3]} 35. Qg8+
{[%clk 0:00:15.2]} 35... Kd7 {[%clk 0:00:23.2]} 36. Qxf7+ {[%clk 0:00:16.7]}
36... Kc6 {[%clk 0:00:24.7]} 37. Qd5+ {[%clk 0:00:14.8]} 37... Kb6 {[%clk
0:00:25.8]} 38. a5+ {[%clk 0:00:15.8]} 38... Ka6 {[%clk 0:00:27.1]} 39. Rd1
{[%clk 0:00:12.4]} 39... Qh7 {[%clk 0:00:16.4]} 40. Qxd6+ {[%clk 0:00:12.9]}
40... Kb5 {[%clk 0:00:18]} 41. Qd5 {[%clk 0:00:09]} 41... Re8 {[%clk 0:00:15.2]}
42. e5 {[%clk 0:00:07.1]} 42... Qc2+ {[%clk 0:00:14.7]} 43. Rd2 {[%clk
0:00:08.6]} 43... Qb1 {[%clk 0:00:12.5]} 44. Ra3 {[%clk 0:00:08.1]} 44... Rab8
{[%clk 0:00:05.1]} 45. Rb3+ {[%clk 0:00:09.1]} 45... Ka4 {[%clk 0:00:04.8]} 46.
Qc4+ {[%clk 0:00:08.2]} 46... Rb4 {[%clk 0:00:02.1]} 47. Rxb4+ {[%clk
0:00:09.2]} 47... cxb4 {[%clk 0:00:04]} 48. b3+ {[%clk 0:00:08.5]} 48... Ka3
{[%clk 0:00:04.3]} 49. e6 {[%clk 0:00:07.1]} 49... Rf8 {[%clk 0:00:02.7]} 50.
Bb2+ {[%clk 0:00:08.5]} 50... Qxb2 {[%clk 0:00:02.4]} 51. Rxb2 {[%clk
0:00:09.4]} 51... Kxb2 {[%clk 0:00:04.3]} 52. Qxb4 {[%clk 0:00:10.8]} 52... Rd8
{[%clk 0:00:04.1]} 53. e7 {[%clk 0:00:11.9]} 53... Rd3 {[%clk 0:00:05.5]} 54.
e8=Q {[%clk 0:00:12]} 54... Rxb3 {[%clk 0:00:07.4]} 55. Qxb3+ {[%clk 0:00:13]}
55... Kxb3 {[%clk 0:00:09.3]} 56. a6 {[%clk 0:00:14.7]} 56... Kc4 {[%clk
0:00:10.6]} 57. a7 {[%clk 0:00:16.6]} 57... h5 {[%clk 0:00:12.1]} 58. a8=Q
{[%clk 0:00:18.2]} 58... h4 {[%clk 0:00:14]} 59. Qac6+ {[%clk 0:00:18.1]} 59...
Kd3 {[%clk 0:00:15.4]} 60. Qee4+ {[%clk 0:00:19.3]} 60... Kd2 {[%clk 0:00:16.3]}
61. Qcc2# {[%clk 0:00:21.2]} 1-0

[Event "*** Titled Tuesday Blitz"]
[Site "Chess.com"]
[Date "2019.11.05"]
[Round "9"]
[White "NTBT_DHS"]
[Black "maxip32"]
[Result "1-0"]
[WhiteElo "2668"]
[BlackElo "2490"]
[TimeControl "180+2"]
[EndTime "15:09:13 PST"]
[Termination "NTBT_DHS won on time"]

1. d4 {[%clk 0:01:44.4]} 1... Nf6 {[%clk 0:02:53.4]} 2. Nc3 {[%clk 0:01:46.3]}
2... d5 {[%clk 0:02:53.1]} 3. Bg5 {[%clk 0:01:47.7]} 3... Nbd7 {[%clk
0:02:51.2]} 4. f3 {[%clk 0:01:48.8]} 4... e6 {[%clk 0:02:45.6]} 5. e4 {[%clk
0:01:49.8]} 5... Be7 {[%clk 0:02:46.6]} 6. Qd2 {[%clk 0:01:49.4]} 6... h6 {[%clk
0:02:47]} 7. Bxf6 {[%clk 0:01:48.6]} 7... Nxf6 {[%clk 0:02:46.2]} 8. O-O-O
{[%clk 0:01:48.5]} 8... Nxe4 {[%clk 0:02:31.8]} 9. Nxe4 {[%clk 0:01:43.3]} 9...
dxe4 {[%clk 0:02:32.9]} 10. Kb1 {[%clk 0:01:44.7]} 10... exf3 {[%clk 0:02:33.5]}
11. Nxf3 {[%clk 0:01:44.7]} 11... O-O {[%clk 0:02:29.4]} 12. g4 {[%clk 0:01:41]}
12... Bd7 {[%clk 0:02:30.1]} 13. Ne5 {[%clk 0:01:36.5]} 13... Bc6 {[%clk
0:02:14]} 14. Nxc6 {[%clk 0:01:35.4]} 14... bxc6 {[%clk 0:02:15.9]} 15. Bg2
{[%clk 0:01:29]} 15... Rb8 {[%clk 0:02:13.7]} 16. Bxc6 {[%clk 0:01:21.9]} 16...
Qd6 {[%clk 0:02:14.6]} 17. Be4 {[%clk 0:01:22.3]} 17... Qa3 {[%clk 0:02:11.1]}
18. c3 {[%clk 0:01:19.7]} 18... Rb6 {[%clk 0:02:06.4]} 19. Rc1 {[%clk
0:01:12.2]} 19... Rfb8 {[%clk 0:02:06]} 20. Rc2 {[%clk 0:01:13.5]} 20... Qa5
{[%clk 0:01:59.5]} 21. Ka1 {[%clk 0:01:03.5]} 21... Ra6 {[%clk 0:01:57.9]} 22.
b4 {[%clk 0:01:03.3]} 22... Qa3 {[%clk 0:01:55.2]} 23. h4 {[%clk 0:01:02.9]}
23... Rab6 {[%clk 0:01:32.3]} 24. g5 {[%clk 0:00:52.1]} 24... e5 {[%clk
0:01:29.7]} 25. dxe5 {[%clk 0:00:43.7]} 25... a5 {[%clk 0:01:29.4]} 26. e6
{[%clk 0:00:24.4]} 26... Rxe6 {[%clk 0:01:26.5]} 27. Bd5 {[%clk 0:00:24.9]}
27... Rd6 {[%clk 0:01:13.9]} 28. gxh6 {[%clk 0:00:26]} 28... axb4 {[%clk
0:01:07.4]} 29. hxg7 {[%clk 0:00:18.1]} 29... bxc3 {[%clk 0:01:04.7]} 30. Bxf7+
{[%clk 0:00:17.6]} 30... Kxf7 {[%clk 0:01:05.3]} 31. Qf4+ {[%clk 0:00:18.7]}
31... Bf6 {[%clk 0:00:58.2]} 32. Qc4+ {[%clk 0:00:14.8]} 32... Kxg7 {[%clk
0:00:42.9]} 33. Qxc7+ {[%clk 0:00:15.8]} 33... Kh6 {[%clk 0:00:35.2]} 34. Qxb8
{[%clk 0:00:16.7]} 34... Rd2 {[%clk 0:00:34.8]} 35. Qf4+ {[%clk 0:00:08.3]}
35... Kg7 {[%clk 0:00:35.6]} 36. Rg1+ {[%clk 0:00:08.9]} 36... Kf7 {[%clk
0:00:36.4]} 37. Qc4+ {[%clk 0:00:07.2]} 37... Ke7 {[%clk 0:00:34.5]} 38. Qc7+
{[%clk 0:00:05.1]} 38... Kf8 {[%clk 0:00:32.1]} 39. Qc8+ {[%clk 0:00:06.2]}
39... Rd8 {[%clk 0:00:29.6]} 40. Qf5 {[%clk 0:00:05.4]} 40... Qd6 {[%clk
0:00:24.6]} 41. Rgc1 {[%clk 0:00:03]} 41... Ke7 {[%clk 0:00:21.7]} 42. h5 {[%clk
0:00:04.2]} 42... Rb8 {[%clk 0:00:17.8]} 43. h6 {[%clk 0:00:04.2]} 43... Rb2
{[%clk 0:00:12.3]} 44. h7 {[%clk 0:00:05.6]} 44... Qa3 {[%clk 0:00:10.5]} 45.
Qxf6+ {[%clk 0:00:06.1]} 45... Kxf6 {[%clk 0:00:11.5]} 46. h8=Q+ {[%clk
0:00:07.2]} 46... Ke6 {[%clk 0:00:12.9]} 47. Re1+ {[%clk 0:00:06.9]} 47... Kd5
{[%clk 0:00:14.1]} 48. Qd8+ {[%clk 0:00:07.7]} 48... Kc6 {[%clk 0:00:12.9]} 49.
Re6+ {[%clk 0:00:08.1]} 49... Kb7 {[%clk 0:00:06.5]} 50. Qd7+ {[%clk 0:00:08.7]}
50... Ka8 {[%clk 0:00:06.7]} 51. Re8+ {[%clk 0:00:10.6]} 51... Rb8 {[%clk
0:00:07.4]} 52. Qc6+ {[%clk 0:00:09.4]} 52... Ka7 {[%clk 0:00:08.5]} 53. Rxb8
{[%clk 0:00:07.6]} 53... Kxb8 {[%clk 0:00:03.9]} 54. Qxc3 {[%clk 0:00:07.9]} 1-0

[Event "*** Titled Tuesday Blitz"]
[Site "Chess.com"]
[Date "2019.11.05"]
[Round "9"]
[White "Walter_White_Poland"]
[Black "enriquetejedor"]
[Result "1-0"]
[WhiteElo "2336"]
[BlackElo "2475"]
[TimeControl "180+2"]
[EndTime "15:09:15 PST"]
[Termination "Walter_White_Poland won by resignation"]

1. e4 {[%clk 0:03:01.9]} 1... d6 {[%clk 0:01:59.8]} 2. d4 {[%clk 0:02:59.7]}
2... e5 {[%clk 0:02:00]} 3. dxe5 {[%clk 0:02:55.3]} 3... dxe5 {[%clk 0:02:00.6]}
4. Qxd8+ {[%clk 0:02:56.2]} 4... Kxd8 {[%clk 0:02:02.5]} 5. Bc4 {[%clk
0:02:57.2]} 5... Be6 {[%clk 0:02:00.7]} 6. Bxe6 {[%clk 0:02:57.4]} 6... fxe6
{[%clk 0:02:02.6]} 7. Be3 {[%clk 0:02:43]} 7... Nd7 {[%clk 0:01:58]} 8. Nd2
{[%clk 0:02:42.3]} 8... Bd6 {[%clk 0:01:56.9]} 9. O-O-O {[%clk 0:02:34.9]} 9...
Ke7 {[%clk 0:01:52.2]} 10. a3 {[%clk 0:02:30.6]} 10... Ngf6 {[%clk 0:01:48]} 11.
f3 {[%clk 0:02:30.8]} 11... a6 {[%clk 0:01:49]} 12. Nc4 {[%clk 0:02:23.8]} 12...
Rad8 {[%clk 0:01:50.9]} 13. Na5 {[%clk 0:02:15.7]} 13... Rb8 {[%clk 0:01:34.1]}
14. Ne2 {[%clk 0:02:05.6]} 14... c6 {[%clk 0:01:15.1]} 15. Ba7 {[%clk
0:01:56.8]} 15... Ra8 {[%clk 0:01:10.5]} 16. Nxb7 {[%clk 0:01:49.7]} 16... Bxa3
{[%clk 0:00:58.2]} 17. Na5 {[%clk 0:01:38.3]} 17... Rhc8 {[%clk 0:00:29.6]} 18.
Be3 {[%clk 0:01:23.3]} 18... Bd6 {[%clk 0:00:16]} 19. Nc4 {[%clk 0:01:20]} 19...
Bc7 {[%clk 0:00:17.1]} 20. c3 {[%clk 0:01:20.7]} 20... Nb8 {[%clk 0:00:02.6]}
21. Kc2 {[%clk 0:01:13.7]} 21... Nbd7 {[%clk 0:00:03.5]} 22. Ra1 {[%clk
0:01:06.5]} 22... Ne8 {[%clk 0:00:04.6]} 23. Rhd1 {[%clk 0:01:06.2]} 23... Nd6
{[%clk 0:00:05.6]} 24. Nxd6 {[%clk 0:00:59.4]} 24... Bxd6 {[%clk 0:00:07.5]} 25.
Rd2 {[%clk 0:00:50.4]} 25... Bc5 {[%clk 0:00:04.6]} 26. Rxd7+ {[%clk 0:00:50.3]}
26... Kxd7 {[%clk 0:00:02.9]} 27. Bxc5 {[%clk 0:00:51.8]} 27... a5 {[%clk
0:00:04.2]} 28. Rd1+ {[%clk 0:00:51.5]} 28... Ke8 {[%clk 0:00:05.1]} 29. Rd6
{[%clk 0:00:50.6]} 29... Kf7 {[%clk 0:00:06]} 30. Rd7+ {[%clk 0:00:51.2]} 30...
Kg6 {[%clk 0:00:07.6]} 31. Nc1 {[%clk 0:00:36.7]} 31... a4 {[%clk 0:00:03.9]}
32. Nd3 {[%clk 0:00:34.9]} 32... Kf6 {[%clk 0:00:04.4]} 33. Be7+ {[%clk
0:00:28.5]} 33... Kf7 {[%clk 0:00:03.4]} 34. Nxe5+ {[%clk 0:00:25.3]} 34... Ke8
{[%clk 0:00:04.6]} 35. Bd6 {[%clk 0:00:12.3]} 35... Rd8 {[%clk 0:00:05.8]} 36.
Re7+ {[%clk 0:00:12.8]} 36... Kf8 {[%clk 0:00:06.9]} 37. Ra7+ {[%clk 0:00:07.8]}
37... Kg8 {[%clk 0:00:07.2]} 38. Rxa8 {[%clk 0:00:05.2]} 38... Rxa8 {[%clk
0:00:09.1]} 39. Ba3 {[%clk 0:00:04.4]} 39... Ra6 {[%clk 0:00:10.2]} 40. Kd3
{[%clk 0:00:05]} 40... g5 {[%clk 0:00:11.8]} 41. Kc4 {[%clk 0:00:05.9]} 41...
Kg7 {[%clk 0:00:13.3]} 42. Kc5 {[%clk 0:00:06.9]} 42... Kf6 {[%clk 0:00:14.8]}
43. Nxc6 {[%clk 0:00:08.2]} 43... g4 {[%clk 0:00:16.3]} 44. fxg4 {[%clk
0:00:07.3]} 44... Kg5 {[%clk 0:00:18]} 45. h3 {[%clk 0:00:07.8]} 45... Kf4
{[%clk 0:00:19.6]} 46. Kb5 {[%clk 0:00:09]} 46... Ra8 {[%clk 0:00:19.5]} 47. Nd4
{[%clk 0:00:09.3]} 47... e5 {[%clk 0:00:20.5]} 48. Nf5 {[%clk 0:00:08.1]} 48...
Kxe4 {[%clk 0:00:21.6]} 49. c4 {[%clk 0:00:09.1]} 49... Rb8+ {[%clk 0:00:21.2]}
50. Kxa4 {[%clk 0:00:09.5]} 50... Kd3 {[%clk 0:00:23.1]} 51. c5 {[%clk
0:00:10.3]} 51... e4 {[%clk 0:00:24.6]} 52. c6 {[%clk 0:00:10.7]} 52... e3
{[%clk 0:00:26.3]} 53. Nxe3 {[%clk 0:00:10.3]} 53... Kxe3 {[%clk 0:00:28.2]} 54.
Bd6 {[%clk 0:00:10]} 54... Rxb2 {[%clk 0:00:29.4]} 55. c7 {[%clk 0:00:10.6]}
55... Rc2 {[%clk 0:00:30.6]} 56. Kb5 {[%clk 0:00:11.7]} 56... Rxc7 {[%clk
0:00:28.8]} 57. Bxc7 {[%clk 0:00:12]} 57... Kf2 {[%clk 0:00:30.7]} 58. g3 {[%clk
0:00:11.5]} 58... Kf3 {[%clk 0:00:32.1]} 59. Kc4 {[%clk 0:00:10.8]} 59... Kg2
{[%clk 0:00:33.1]} 60. h4 {[%clk 0:00:11]} 60... Kf3 {[%clk 0:00:34.8]} 61. g5
{[%clk 0:00:11.8]} 61... Kg4 {[%clk 0:00:35.8]} 62. Bf4 {[%clk 0:00:12.6]} 62...
Kf5 {[%clk 0:00:37]} 63. Kd5 {[%clk 0:00:13.6]} 63... h5 {[%clk 0:00:38.4]} 64.
gxh6 {[%clk 0:00:13.2]} 1-0

[Event "*** Titled Tuesday Blitz"]
[Site "Chess.com"]
[Date "2019.11.05"]
[Round "9"]
[White "Orest_Vovk"]
[Black "Astaneh"]
[Result "1/2-1/2"]
[WhiteElo "2426"]
[BlackElo "2555"]
[TimeControl "180+2"]
[EndTime "15:09:17 PST"]
[Termination "Game drawn - insufficient material"]

1. h3 {[%clk 0:03:01.9]} 1... e5 {[%clk 0:02:56.9]} 2. Nf3 {[%clk 0:03:00.3]}
2... Nc6 {[%clk 0:02:57]} 3. d4 {[%clk 0:03:01]} 3... e4 {[%clk 0:02:57.1]} 4.
d5 {[%clk 0:03:01.6]} 4... exf3 {[%clk 0:02:52.6]} 5. dxc6 {[%clk 0:03:02.7]}
5... fxg2 {[%clk 0:02:53.6]} 6. cxd7+ {[%clk 0:03:02.6]} 6... Qxd7 {[%clk
0:02:54.8]} 7. Qxd7+ {[%clk 0:03:02.9]} 7... Bxd7 {[%clk 0:02:56.7]} 8. Bxg2
{[%clk 0:03:04.2]} 8... O-O-O {[%clk 0:02:58.2]} 9. Nc3 {[%clk 0:03:04.4]} 9...
Ne7 {[%clk 0:02:58.4]} 10. Bd2 {[%clk 0:03:03.3]} 10... Bc6 {[%clk 0:02:59.9]}
11. Bxc6 {[%clk 0:03:03.5]} 11... Nxc6 {[%clk 0:03:01.8]} 12. O-O-O {[%clk
0:03:04.8]} 12... Bc5 {[%clk 0:02:57.5]} 13. Ne4 {[%clk 0:02:58.9]} 13... Bb6
{[%clk 0:02:57.4]} 14. Bc3 {[%clk 0:02:58.7]} 14... Rhe8 {[%clk 0:02:55.6]} 15.
Rxd8+ {[%clk 0:02:56.8]} 15... Nxd8 {[%clk 0:02:55.5]} 16. f3 {[%clk 0:02:41.9]}
16... f5 {[%clk 0:02:55.5]} 17. Ng3 {[%clk 0:02:38.4]} 17... g6 {[%clk 0:02:56]}
18. Kd1 {[%clk 0:02:33.2]} 18... Ne6 {[%clk 0:02:52.7]} 19. e4 {[%clk
0:02:26.5]} 19... Bf2 {[%clk 0:02:39.7]} 20. exf5 {[%clk 0:02:21.3]} 20... Bxg3
{[%clk 0:02:34.4]} 21. fxe6 {[%clk 0:02:22]} 21... Rxe6 {[%clk 0:02:36.3]} 22.
Rg1 {[%clk 0:02:17.8]} 22... Be5 {[%clk 0:02:26.6]} 23. Bxe5 {[%clk 0:02:14.8]}
23... Rxe5 {[%clk 0:02:27.8]} 24. Rg4 {[%clk 0:02:03.2]} 24... Kd7 {[%clk
0:02:28.2]} 25. Rf4 {[%clk 0:01:56.7]} 25... Ke6 {[%clk 0:02:25]} 26. Rh4 {[%clk
0:01:55]} 26... h5 {[%clk 0:02:24.8]} 27. Ra4 {[%clk 0:01:53.2]} 27... a5 {[%clk
0:02:22.8]} 28. Rc4 {[%clk 0:01:50.4]} 28... c6 {[%clk 0:02:23]} 29. h4 {[%clk
0:01:46]} 29... Re3 {[%clk 0:02:20.4]} 30. Rf4 {[%clk 0:01:44]} 30... Re5 {[%clk
0:02:15]} 31. Rf8 {[%clk 0:01:34.6]} 31... Rf5 {[%clk 0:02:14.2]} 32. Rg8 {[%clk
0:01:29.8]} 32... Kf6 {[%clk 0:02:08.8]} 33. Ke2 {[%clk 0:01:24.6]} 33... Rb5
{[%clk 0:02:09.7]} 34. b3 {[%clk 0:01:23.1]} 34... Rb4 {[%clk 0:02:11.2]} 35.
Ra8 {[%clk 0:01:12.6]} 35... Rxh4 {[%clk 0:02:06.9]} 36. Rxa5 {[%clk 0:01:12.9]}
36... Rh2+ {[%clk 0:02:06.6]} 37. Kd3 {[%clk 0:01:12.6]} 37... h4 {[%clk
0:02:06.5]} 38. Ra7 {[%clk 0:01:05.8]} 38... b6 {[%clk 0:02:02.4]} 39. Rc7
{[%clk 0:00:58.8]} 39... c5 {[%clk 0:01:55.6]} 40. Rc6+ {[%clk 0:00:59.7]} 40...
Kg5 {[%clk 0:01:54.6]} 41. Rxb6 {[%clk 0:01:01.6]} 41... h3 {[%clk 0:01:54.4]}
42. Rb8 {[%clk 0:00:55.6]} 42... Kf4 {[%clk 0:01:52.9]} 43. Rf8+ {[%clk
0:00:53]} 43... Kg3 {[%clk 0:01:53.9]} 44. Rg8 {[%clk 0:00:54]} 44... Rg2 {[%clk
0:01:46.9]} 45. Rxg6+ {[%clk 0:00:53.3]} 45... Kxf3 {[%clk 0:01:47.4]} 46. Rh6
{[%clk 0:00:54.3]} 46... h2 {[%clk 0:00:37.3]} 47. a4 {[%clk 0:00:47.9]} 47...
Kg4 {[%clk 0:00:38.8]} 48. Kc4 {[%clk 0:00:12.1]} 48... Rxc2+ {[%clk 0:00:39.3]}
49. Kb5 {[%clk 0:00:13]} 49... Kg3 {[%clk 0:00:31.4]} 50. a5 {[%clk 0:00:09.8]}
50... Rc3 {[%clk 0:00:23.6]} 51. a6 {[%clk 0:00:07]} 51... Rxb3+ {[%clk
0:00:23.1]} 52. Kxc5 {[%clk 0:00:08.1]} 52... Ra3 {[%clk 0:00:14.5]} 53. Rxh2
{[%clk 0:00:06.5]} 53... Kxh2 {[%clk 0:00:13.6]} 54. Kb6 {[%clk 0:00:07.5]}
54... Rb3+ {[%clk 0:00:12.9]} 55. Kc7 {[%clk 0:00:08.4]} 55... Rc3+ {[%clk
0:00:14]} 56. Kb7 {[%clk 0:00:09.3]} 56... Kg3 {[%clk 0:00:15]} 57. a7 {[%clk
0:00:10]} 57... Rb3+ {[%clk 0:00:16.9]} 58. Kc7 {[%clk 0:00:11]} 58... Ra3
{[%clk 0:00:17.2]} 59. Kb7 {[%clk 0:00:11.5]} 59... Kf4 {[%clk 0:00:18.4]} 60.
a8=Q {[%clk 0:00:11.8]} 60... Rxa8 {[%clk 0:00:20.3]} 61. Kxa8 {[%clk 0:00:13]}
1/2-1/2

[Event "*** Titled Tuesday Blitz"]
[Site "Chess.com"]
[Date "2019.11.05"]
[Round "9"]
[White "codapbg94"]
[Black "coolthing"]
[Result "1-0"]
[WhiteElo "2175"]
[BlackElo "2341"]
[TimeControl "180+2"]
[EndTime "15:09:50 PST"]
[Termination "codapbg94 won by resignation"]

1. e4 {[%clk 0:03:01.9]} 1... Nf6 {[%clk 0:03:01.2]} 2. e5 {[%clk 0:03:02.7]}
2... Nd5 {[%clk 0:03:02.5]} 3. d4 {[%clk 0:03:04.1]} 3... d6 {[%clk 0:03:03.9]}
4. Nf3 {[%clk 0:03:05.5]} 4... g6 {[%clk 0:03:04.8]} 5. Bc4 {[%clk 0:03:03.2]}
5... Nb6 {[%clk 0:03:05.7]} 6. Bb3 {[%clk 0:03:03.3]} 6... Bg7 {[%clk
0:03:06.9]} 7. Qe2 {[%clk 0:02:53.5]} 7... O-O {[%clk 0:03:07.6]} 8. c3 {[%clk
0:02:54.2]} 8... c5 {[%clk 0:03:08.3]} 9. dxc5 {[%clk 0:02:43.7]} 9... dxc5
{[%clk 0:03:09.1]} 10. h3 {[%clk 0:02:40.6]} 10... Qc7 {[%clk 0:03:06.2]} 11.
Nbd2 {[%clk 0:02:37.4]} 11... Nc6 {[%clk 0:03:04.6]} 12. e6 {[%clk 0:02:35.4]}
12... fxe6 {[%clk 0:02:58.2]} 13. Bxe6+ {[%clk 0:02:34.7]} 13... Kh8 {[%clk
0:02:52.6]} 14. O-O {[%clk 0:02:29.4]} 14... Bd7 {[%clk 0:02:29.2]} 15. Bb3
{[%clk 0:02:06.7]} 15... Rae8 {[%clk 0:01:33]} 16. Ne4 {[%clk 0:01:50.9]} 16...
Ne5 {[%clk 0:01:03.9]} 17. Nxe5 {[%clk 0:01:45.7]} 17... Bxe5 {[%clk 0:01:02.4]}
18. Bh6 {[%clk 0:01:41.8]} 18... Bg7 {[%clk 0:00:58.8]} 19. Bxg7+ {[%clk
0:01:42.3]} 19... Kxg7 {[%clk 0:00:59.8]} 20. Rae1 {[%clk 0:01:15.3]} 20... e5
{[%clk 0:00:45]} 21. Rd1 {[%clk 0:01:08.3]} 21... c4 {[%clk 0:00:27.5]} 22. Bc2
{[%clk 0:01:08.7]} 22... Bc6 {[%clk 0:00:28]} 23. Rd2 {[%clk 0:01:00.3]} 23...
Rf4 {[%clk 0:00:16.8]} 24. Rfd1 {[%clk 0:00:57.9]} 24... Ref8 {[%clk 0:00:13.3]}
25. f3 {[%clk 0:00:57.9]} 25... R4f7 {[%clk 0:00:11.2]} 26. Nd6 {[%clk
0:00:52.3]} 26... Rf6 {[%clk 0:00:11.4]} 27. Nxc4 {[%clk 0:00:49.5]} 27... Nxc4
{[%clk 0:00:10]} 28. Qxc4 {[%clk 0:00:49.6]} 28... Qb6+ {[%clk 0:00:10]} 29. Kh2
{[%clk 0:00:45.3]} 29... Bb5 {[%clk 0:00:07.2]} 30. Qb3 {[%clk 0:00:38.8]} 30...
e4 {[%clk 0:00:05.9]} 31. Bxe4 {[%clk 0:00:36.6]} 31... Qc7+ {[%clk 0:00:05.9]}
32. Kg1 {[%clk 0:00:34.8]} 32... Qc5+ {[%clk 0:00:04.4]} 33. Rd4 {[%clk
0:00:34.2]} 33... a5 {[%clk 0:00:03]} 34. Qa3 {[%clk 0:00:34.6]} 34... Qb6
{[%clk 0:00:02.1]} 35. Kh1 {[%clk 0:00:32.4]} 35... Kh6 {[%clk 0:00:02.1]} 36.
Rd6 {[%clk 0:00:32.9]} 36... Rxd6 {[%clk 0:00:02.5]} 37. Qxd6 {[%clk 0:00:33.6]}
37... Qf2 {[%clk 0:00:03.7]} 38. Qd2+ {[%clk 0:00:32.2]} 38... Qxd2 {[%clk
0:00:04.4]} 39. Rxd2 {[%clk 0:00:34.1]} 39... Re8 {[%clk 0:00:05.1]} 40. Kg1
{[%clk 0:00:33.7]} 40... Ba6 {[%clk 0:00:05.8]} 41. Kf2 {[%clk 0:00:34.6]} 41...
Re7 {[%clk 0:00:06.9]} 42. Ke3 {[%clk 0:00:35.2]} 42... Kg7 {[%clk 0:00:08.5]}
43. Rd5 {[%clk 0:00:35.7]} 43... Kf6 {[%clk 0:00:09.7]} 44. Rxa5 {[%clk
0:00:35.4]} 44... Rd7 {[%clk 0:00:11.2]} 45. Rd5 {[%clk 0:00:35.3]} 45... Re7
{[%clk 0:00:12.6]} 46. Rd6+ {[%clk 0:00:34.6]} 46... Kf7 {[%clk 0:00:13.4]} 47.
b4 {[%clk 0:00:32.4]} 47... Bc4 {[%clk 0:00:13.6]} 48. a4 {[%clk 0:00:32.1]}
48... Bb3 {[%clk 0:00:14.3]} 49. a5 {[%clk 0:00:32.5]} 49... Ba4 {[%clk
0:00:15]} 50. Rb6 {[%clk 0:00:32.8]} 50... Bc6 {[%clk 0:00:15.8]} 51. b5 {[%clk
0:00:31.3]} 51... Be8 {[%clk 0:00:13.9]} 52. Rxb7 {[%clk 0:00:31.7]} 52... Rxb7
{[%clk 0:00:15]} 53. Bxb7 {[%clk 0:00:33.4]} 53... Bxb5 {[%clk 0:00:16.8]} 54.
a6 {[%clk 0:00:34.1]} 54... Bxa6 {[%clk 0:00:16.7]} 55. Bxa6 {[%clk 0:00:36]}
55... Ke6 {[%clk 0:00:17.6]} 56. Bc4+ {[%clk 0:00:36.6]} 56... Kf5 {[%clk
0:00:18.8]} 57. Bg8 {[%clk 0:00:38]} 57... h6 {[%clk 0:00:19.6]} 58. Bh7 {[%clk
0:00:39]} 58... Kf6 {[%clk 0:00:20.6]} 59. c4 {[%clk 0:00:39.3]} 59... Kg7
{[%clk 0:00:21.5]} 60. Bxg6 {[%clk 0:00:38.3]} 60... Kxg6 {[%clk 0:00:22.9]} 61.
Ke4 {[%clk 0:00:39.8]} 61... Kf6 {[%clk 0:00:24.2]} 62. f4 {[%clk 0:00:40.4]}
62... h5 {[%clk 0:00:25.2]} 63. g4 {[%clk 0:00:41.4]} 63... h4 {[%clk
0:00:24.7]} 64. c5 {[%clk 0:00:41.3]} 64... Ke6 {[%clk 0:00:25.5]} 65. g5 {[%clk
0:00:42.7]} 65... Kf7 {[%clk 0:00:26.6]} 66. c6 {[%clk 0:00:43.2]} 66... Kg7
{[%clk 0:00:27.6]} 67. c7 {[%clk 0:00:44]} 67... Kh7 {[%clk 0:00:27.8]} 68. c8=Q
{[%clk 0:00:42.5]} 68... Kg6 {[%clk 0:00:29.2]} 69. Qg4 {[%clk 0:00:41]} 69...
Kg7 {[%clk 0:00:30]} 70. Qxh4 {[%clk 0:00:41.1]} 70... Kf7 {[%clk 0:00:31.5]}
71. Qh6 {[%clk 0:00:40.9]} 71... Kg8 {[%clk 0:00:31.9]} 72. Ke5 {[%clk
0:00:29.3]} 72... Kf7 {[%clk 0:00:33]} 73. Qh7+ {[%clk 0:00:30]} 73... Kf8
{[%clk 0:00:34.1]} 74. Kf6 {[%clk 0:00:29.1]} 1-0